bitfinex-derivatives/quotes_BTCF0:USTF0_20250921
["timestamp","ask_amount","ask_price","bid_price","bid_amount"]
[1758434222722,1.5426911,115700.0,115690.0,0.7631815]
[1758434223124,1.5426911,115700.0,115690.0,0.68551592]
[1758434225025,1.5426911,115700.0,115690.0,0.79424773]
[1758434228629,1.5426911,115700.0,115690.0,0.51021181]
[1758434228832,1.5426911,115700.0,115690.0,0.79424773]
[1758434232733,1.5426911,115700.0,115690.0,1.07828365]
[1758434234835,1.5426911,115700.0,115690.0,0.79424773]
[1758434241645,1.5426911,115700.0,115690.0,0.43344773]
[1758434241835,1.5426911,115700.0,115690.0,0.79424773]
[1758434247844,1.5426911,115700.0,115690.0,1.07828365]
[1758434251050,1.25865518,115700.0,115690.0,1.07828365]
[1758434251748,1.5426911,115700.0,115690.0,1.07828365]
[1758434254355,1.5426911,115700.0,115690.0,0.71748365]
[1758434254550,1.5426911,115700.0,115690.0,1.07828365]
[1758434256350,1.5426911,115700.0,115690.0,0.71748365]
[1758434256553,1.5426911,115700.0,115690.0,1.07828365]
[1758434258954,1.5426911,115700.0,115690.0,0.71748365]
[1758434259154,1.5426911,115700.0,115690.0,1.07828365]
[1758434260352,1.5426911,115700.0,115690.0,0.71748365]
[1758434260555,1.5426911,115700.0,115690.0,0.51021181]
[1758434260755,1.5426911,115700.0,115690.0,1.07828365]
[1758434265957,1.5426911,115700.0,115690.0,0.51021181]
[1758434266158,1.5426911,115700.0,115690.0,1.07828365]
[1758434270062,1.5426911,115700.0,115690.0,0.51021181]
[1758434270359,1.5426911,115700.0,115690.0,1.07828365]
[1758434271763,1.8267448,115700.0,115690.0,1.36233735]
[1758434274768,1.8267448,115700.0,115690.0,0.51021181]
[1758434274970,1.8267448,115700.0,115690.0,1.36233735]
[1758434275570,1.8267448,115700.0,115690.0,1.00153735]
[1758434275771,1.8267448,115700.0,115690.0,1.36233735]
[1758434278873,1.8267448,115700.0,115690.0,0.51021181]
[1758434279075,1.8267448,115700.0,115690.0,1.36233735]
[1758434282277,1.8267448,115700.0,115690.0,0.93627458]
[1758434286081,1.8267448,115700.0,115690.0,1.36233735]
[1758434288885,1.8267448,115700.0,115690.0,0.51021181]
[1758434289083,1.8267448,115700.0,115690.0,1.36233735]
[1758434290889,1.0471848,115700.0,115690.0,1.36233735]
[1758434291088,1.8265848,115700.0,115690.0,1.36233735]
[1758434291388,1.8265848,115700.0,115690.0,0.51021181]
[1758434291583,1.8265848,115700.0,115690.0,1.36233735]
[1758434295288,0.19505926,115700.0,115690.0,1.78840012]
[1758434295996,0.19505926,115700.0,115690.0,1.86607364]
[1758434296292,0.19505926,115700.0,115690.0,1.75734183]
[1758434296688,0.19505926,115700.0,115690.0,2.11814183]
[1758434296886,0.62112203,115700.0,115690.0,2.11814183]
[1758434297700,0.19505926,115700.0,115690.0,2.11814183]
[1758434300702,0.19505926,115700.0,115690.0,2.14920012]
[1758434301802,0.19405926,115700.0,115690.0,2.04146831]
[1758434301997,0.19305926,115700.0,115690.0,2.03646831]
[1758434302295,0.19505926,115700.0,115690.0,2.04846831]
[1758434303201,0.16973926,115700.0,115690.0,2.15707894]
[1758434303703,0.16959926,115700.0,115690.0,2.15707894]
[1758434304107,0.16946926,115700.0,115690.0,2.15707894]
[1758434305103,0.16946926,115700.0,115690.0,2.04846831]
[1758434305402,0.16630926,115700.0,115690.0,2.04846831]
[1758434305900,0.16630926,115700.0,115690.0,2.15704811]
[1758434306104,0.01194926,115700.0,115690.0,2.15704811]
[1758434306404,0.08638,115700.0,115690.0,2.15704811]
[1758434307110,0.15614616,115700.0,115690.0,2.15704811]
[1758434307505,0.14771616,115700.0,115690.0,2.15704811]
[1758434308008,0.14559616,115700.0,115690.0,2.15704811]
[1758434308609,0.18236229,115700.0,115690.0,2.15704811]
[1758434314311,0.18236229,115700.0,115690.0,0.8788598]
[1758434314510,0.18236229,115700.0,115690.0,2.15704811]
[1758434315009,0.17979229,115700.0,115690.0,2.15704811]
[1758434315512,0.17979229,115700.0,115690.0,2.04846831]
[1758434316510,0.17940229,115700.0,115690.0,2.20386011]
[1758434317609,0.17854229,115700.0,115690.0,2.20386011]
[1758434318111,0.17827229,115700.0,115690.0,2.20386011]
[1758434319710,0.17827229,115700.0,115690.0,2.04846831]
[1758434320510,0.17807229,115700.0,115690.0,2.04846831]
[1758434320809,0.17764229,115700.0,115690.0,2.04846831]
[1758434321113,0.16812229,115700.0,115690.0,2.04846831]
[1758434322913,0.16812229,115700.0,115690.0,2.20386011]
[1758434323815,0.16715229,115700.0,115690.0,2.20386011]
[1758434325615,0.16647229,115700.0,115690.0,2.20386011]
[1758434326015,0.16233229,115700.0,115690.0,2.20386011]
[1758434326719,0.16233229,115700.0,115690.0,0.9256718]
[1758434326920,0.58839506,115700.0,115690.0,2.20386011]
[1758434327112,0.58498506,115700.0,115690.0,2.20386011]
[1758434327622,0.58394506,115700.0,115690.0,2.20386011]
[1758434329120,0.15788229,115700.0,115690.0,2.20386011]
[1758434330222,0.15329229,115700.0,115690.0,2.20386011]
[1758434331629,0.10653229,115700.0,115690.0,2.20386011]
[1758434331929,0.08638,115700.0,115690.0,1.77761942]
[1758434332227,0.12041189,115700.0,115690.0,1.77761942]
[1758434332428,0.12026189,115700.0,115690.0,1.77761942]
[1758434334131,0.12026189,115700.0,115690.0,1.8862941]
[1758434334324,0.45672934,115710.0,115690.0,1.7309023]
[1758434334529,0.32604934,115710.0,115700.0,0.79452]
[1758434334827,0.32604934,115710.0,115700.0,1.15532]
[1758434335225,0.39397858,115710.0,115700.0,1.15532]
[1758434335626,0.43717858,115710.0,115700.0,1.72328508]
[1758434336128,0.43817858,115710.0,115700.0,1.72928508]
[1758434336329,0.47384051,115710.0,115700.0,1.72928508]
[1758434338333,0.18985797,115710.0,115700.0,1.72928508]
[1758434338634,0.47384051,115710.0,115700.0,2.09090511]
[1758434338829,0.47384051,115710.0,115700.0,2.01326762]
[1758434339031,0.18985797,115710.0,115700.0,2.01326762]
[1758434339333,0.18985797,115710.0,115700.0,2.12196027]
[1758434339529,0.18985797,115710.0,115700.0,2.19959737]
[1758434339733,0.18985797,115710.0,115700.0,2.01326762]
[1758434342634,0.18985797,115710.0,115700.0,2.16865942]
[1758434342930,0.18671797,115710.0,115700.0,2.16865942]
[1758434344634,0.18422797,115710.0,115700.0,2.16865942]
[1758434345833,0.14779117,115710.0,115700.0,2.16865942]
[1758434346337,0.11212924,115710.0,115700.0,2.01326762]
[1758434346523,0.1305734,115710.0,115700.0,2.01326762]
[1758434347033,0.0987734,115710.0,115700.0,2.01326762]
[1758434347434,0.0751181,115710.0,115700.0,2.01326762]
[1758434347631,0.0751181,115710.0,115700.0,2.00726762]
[1758434347835,0.0761181,115710.0,115700.0,2.01726762]
[1758434348829,0.0761181,115710.0,115700.0,2.12585767]
[1758434349034,0.0758581,115710.0,115700.0,2.12585767]
[1758434349227,0.28398254,115730.0,115720.0,0.01286]
[1758434349430,2.12047887,115740.0,115730.0,0.03551]
[1758434350536,2.40446141,115740.0,115730.0,0.03551]
[1758434350837,2.47370614,115740.0,115730.0,0.03551]
[1758434351136,2.1977236,115740.0,115730.0,0.03651]
[1758434351436,2.51727539,115740.0,115730.0,0.03651]
[1758434353142,2.52027539,115740.0,115730.0,0.03651]
[1758434354940,1.17103031,115740.0,115730.0,0.32049254]
[1758434355142,1.87533285,115740.0,115730.0,0.32049254]
[1758434355637,1.87533285,115740.0,115730.0,0.39803528]
[1758434355838,1.87533285,115740.0,115730.0,0.32049254]
[1758434356138,1.87533285,115740.0,115730.0,0.39803528]
[1758434359335,1.87521285,115740.0,115730.0,0.39803528]
[1758434361137,0.20215468,115740.0,115730.0,0.39803528]
[1758434361439,1.26705722,115740.0,115730.0,0.96527508]
[1758434361641,1.55103976,115740.0,115730.0,0.75883528]
[1758434363344,1.26705722,115740.0,115730.0,0.75883528]
[1758434363747,1.26705722,115740.0,115730.0,1.04281782]
[1758434364038,1.26705722,115740.0,115730.0,0.68129254]
[1758434365337,1.26705722,115740.0,115730.0,1.04281782]
[1758434366347,1.26705722,115740.0,115730.0,0.75883528]
[1758434367547,1.26689722,115740.0,115730.0,1.04281782]
[1758434367745,1.26689722,115740.0,115730.0,0.96527508]
[1758434368848,1.26689722,115740.0,115730.0,0.39731]
[1758434369148,1.26689722,115740.0,115730.0,0.96527508]
[1758434371946,0.48613722,115740.0,115730.0,0.96527508]
[1758434374449,0.48613722,115740.0,115730.0,1.04281782]
[1758434378761,0.20215468,115740.0,115730.0,0.47485274]
[1758434378961,0.77011976,115740.0,115730.0,0.75883528]
[1758434379258,0.77011976,115740.0,115730.0,1.04281782]
[1758434379459,0.77011976,115740.0,115730.0,0.75883528]
[1758434379962,0.77011976,115740.0,115730.0,1.04281782]
[1758434380558,0.77011976,115740.0,115730.0,0.68129254]
[1758434381159,0.77011976,115740.0,115730.0,0.96527508]
[1758434381359,0.77011976,115740.0,115730.0,1.07386513]
[1758434383355,0.77011976,115740.0,115730.0,0.78988259]
[1758434384260,0.48613722,115740.0,115730.0,0.78988259]
[1758434384763,0.48613722,115740.0,115730.0,1.07386513]
[1758434386264,0.20215468,115740.0,115730.0,1.68537955]
[1758434386461,0.20215468,115740.0,115730.0,1.49925762]
[1758434386862,0.20215468,115740.0,115730.0,1.60784767]
[1758434387163,0.16658543,115740.0,115730.0,1.60784767]
[1758434387762,0.16658543,115740.0,115730.0,1.49925762]
[1758434390162,0.09051634,115750.0,115740.0,0.03555]
[1758434390466,0.14088888,115750.0,115740.0,0.96501881]
[1758434390764,0.12359888,115750.0,115740.0,0.88749762]
[1758434391058,0.08038888,115750.0,115740.0,0.88749762]
[1758434391363,1.51262834,115760.0,115750.0,0.03555]
[1758434392157,0.5152467,115760.0,115750.0,0.03555]
[1758434392363,1.2967267,115760.0,115750.0,0.03555]
[1758434392670,1.3037267,115760.0,115750.0,0.96501881]
[1758434392854,1.58770924,115760.0,115750.0,0.96501881]
[1758434393163,1.58770924,115760.0,115750.0,0.88749762]
[1758434393461,1.59270924,115760.0,115750.0,0.88749762]
[1758434393861,1.77836346,115760.0,115750.0,1.31232051]
[1758434396364,0.99688346,115760.0,115750.0,1.31232051]
[1758434396564,1.77852346,115760.0,115750.0,1.31232051]
[1758434397465,1.77840346,115760.0,115750.0,1.31232051]
[1758434400268,1.35281329,115760.0,115750.0,1.31232051]
[1758434401063,1.35273329,115760.0,115750.0,1.31232051]
[1758434401257,0.57129329,115760.0,115750.0,1.31232051]
[1758434401759,0.21049329,115760.0,115750.0,1.3898417]
[1758434402458,0.21049329,115760.0,115750.0,1.7506417]
[1758434402674,0.21049329,115760.0,115750.0,1.67312051]
[1758434403572,0.21049329,115760.0,115750.0,1.78165018]
[1758434407269,0.63608346,115760.0,115750.0,1.78165018]
[1758434407466,0.63608346,115760.0,115750.0,1.67312051]
[1758434408569,0.63608346,115760.0,115750.0,1.78165018]
[1758434408772,0.63008346,115760.0,115750.0,1.78965018]
[1758434409070,0.62508346,115760.0,115750.0,1.78965018]
[1758434409971,0.19949329,115760.0,115750.0,1.78965018]
[1758434413973,0.62508346,115760.0,115750.0,1.78965018]
[1758434415165,0.62508346,115760.0,115750.0,2.57077018]
[1758434416775,0.19949329,115760.0,115750.0,2.57077018]
[1758434417076,0.62508346,115760.0,115750.0,2.57077018]
[1758434419077,0.19949329,115760.0,115750.0,2.57077018]
[1758434422075,0.62508346,115760.0,115750.0,2.57077018]
[1758434425376,0.19949329,115760.0,115750.0,2.57077018]
[1758434429680,0.19949329,115760.0,115750.0,2.46224051]
[1758434435786,0.19949329,115760.0,115750.0,2.57083322]
[1758434439485,0.19949329,115760.0,115750.0,2.57019322]
[1758434441895,0.19949329,115760.0,115750.0,2.46160051]
[1758434442296,0.19949329,115760.0,115750.0,2.57019634]
[1758434446997,0.19949329,115760.0,115750.0,2.46160051]
[1758434447203,0.19949329,115760.0,115750.0,1.18483]
[1758434447398,0.19949329,115760.0,115750.0,2.46160051]
[1758434449005,0.19949329,115760.0,115750.0,2.57017307]
[1758434449207,0.1554467,115760.0,115750.0,2.57017307]
[1758434453110,0.19786027,115760.0,115750.0,2.57017307]
[1758434454711,0.19786027,115760.0,115750.0,2.46160051]
[1758434455806,0.19786027,115760.0,115750.0,2.03590468]
[1758434457310,0.1554467,115760.0,115750.0,2.14447318]
[1758434457712,0.1554467,115760.0,115750.0,2.03590468]
[1758434457912,0.1554467,115760.0,115750.0,2.11345359]
[1758434458111,0.1554467,115760.0,115750.0,2.03590468]
[1758434459204,0.1554467,115760.0,115750.0,1.18483]
[1758434459406,0.1554467,115760.0,115750.0,2.03590468]
[1758434465620,0.1554444,115760.0,115750.0,2.48303568]
[1758434466022,0.04308303,115770.0,115760.0,0.03624]
[1758434466315,0.23441572,115780.0,115760.0,1.24811468]
[1758434466510,0.8672044,115790.0,115780.0,0.03624]
[1758434466713,1.54565168,115790.0,115780.0,0.39740142]
[1758434467021,1.8941267,115790.0,115780.0,0.39740142]
[1758434468917,1.8981267,115790.0,115780.0,0.39740142]
[1758434469122,1.9001267,115790.0,115780.0,0.39740142]
[1758434469424,0.83563514,115790.0,115780.0,0.39740142]
[1758434469625,1.61639514,115790.0,115780.0,0.39740142]
[1758434469816,1.9000867,115790.0,115780.0,0.39740142]
[1758434472922,1.1193267,115790.0,115780.0,0.39740142]
[1758434473228,1.8999667,115790.0,115780.0,0.39740142]
[1758434474120,1.61627514,115790.0,115780.0,0.60362312]
[1758434474416,1.8999667,115790.0,115780.0,0.68109298]
[1758434474624,1.8999267,115790.0,115780.0,0.68109298]
[1758434475826,0.55194358,115790.0,115780.0,0.68109298]
[1758434476015,1.33250358,115790.0,115780.0,0.68109298]
[1758434476214,1.61619514,115790.0,115780.0,0.68109298]
[1758434477422,1.61619514,115790.0,115780.0,0.60362312]
[1758434479326,1.33246358,115790.0,115780.0,0.60362312]
[1758434479535,1.61615514,115790.0,115780.0,0.88731468]
[1758434479820,1.61615514,115790.0,115780.0,0.60362312]
[1758434480022,1.61615514,115790.0,115780.0,0.68109298]
[1758434480226,1.61615514,115790.0,115780.0,0.03624]
[1758434480429,1.61615514,115790.0,115780.0,0.68109298]
[1758434480924,1.61615514,115790.0,115780.0,0.96478454]
[1758434481120,1.33246358,115790.0,115780.0,0.68109298]
[1758434481431,1.61615514,115790.0,115780.0,0.68109298]
[1758434481825,0.55194358,115790.0,115780.0,0.68109298]
[1758434482031,1.61611514,115790.0,115780.0,0.88731468]
[1758434482530,1.61611514,115790.0,115780.0,0.60362312]
[1758434485335,1.33242358,115790.0,115780.0,0.88731468]
[1758434485531,1.61611514,115790.0,115780.0,0.60362312]
[1758434486430,1.33242358,115790.0,115780.0,0.60362312]
[1758434486633,1.61611514,115790.0,115780.0,0.60362312]
[1758434486821,1.00357568,115790.0,115780.0,0.88731468]
[1758434487131,0.22321568,115790.0,115780.0,0.88731468]
[1758434488033,0.22121568,115790.0,115780.0,0.88731468]
[1758434488334,1.00153568,115790.0,115780.0,0.96471496]
[1758434488631,0.98174856,115790.0,115780.0,1.24811468]
[1758434488936,0.19946856,115790.0,115780.0,1.57651496]
[1758434489131,0.19946856,115790.0,115780.0,1.49911468]
[1758434489331,0.19946856,115790.0,115780.0,2.35678452]
[1758434489531,0.19946856,115790.0,115780.0,2.27939468]
[1758434490333,0.1559277,115790.0,115780.0,2.38785336]
[1758434490633,0.55930636,115810.0,115800.0,0.03519]
[1758434490830,0.36998316,115810.0,115800.0,0.96337312]
[1758434491033,0.0862916,115810.0,115800.0,1.04075836]
[1758434491230,0.0862916,115810.0,115800.0,1.32444992]
[1758434491537,0.8668516,115810.0,115800.0,1.24706468]
[1758434491934,0.0862916,115810.0,115800.0,1.24706468]
[1758434492132,0.0862916,115810.0,115800.0,2.10511029]
[1758434492437,0.0862916,115810.0,115800.0,2.02778468]
[1758434492937,0.15674392,115810.0,115800.0,2.10610099]
[1758434493434,0.15674392,115810.0,115800.0,2.10510099]
[1758434493739,0.15974392,115810.0,115800.0,2.10810099]
[1758434494838,0.15674392,115810.0,115800.0,2.03078468]
[1758434495037,0.15674392,115810.0,115800.0,2.10810099]
[1758434500253,0.15674392,115810.0,115800.0,2.03078468]
[1758434502259,0.15674392,115810.0,115800.0,1.17971]
[1758434502556,0.15674392,115810.0,115800.0,2.03078468]
[1758434503355,0.15674392,115810.0,115800.0,2.10810099]
[1758434506561,0.44043548,115810.0,115800.0,2.10810099]
[1758434506863,0.15674392,115810.0,115800.0,2.10810099]
[1758434508570,0.15674392,115810.0,115800.0,1.32738099]
[1758434508754,0.15674392,115810.0,115800.0,2.10774099]
[1758434511966,0.72412704,115810.0,115800.0,1.25658631]
[1758434512166,1.0079186,115810.0,115800.0,0.03819]
[1758434512467,1.7881986,115810.0,115800.0,0.03819]
[1758434512768,1.7881986,115810.0,115800.0,0.32188156]
[1758434515771,2.21316447,115810.0,115800.0,0.46353685]
[1758434516270,2.21316447,115810.0,115800.0,0.54085316]
[1758434519276,2.21316447,115810.0,115800.0,0.46353685]
[1758434520264,1.43288447,115810.0,115800.0,0.46353685]
[1758434520465,2.21308447,115810.0,115800.0,0.57199553]
[1758434520879,2.21308447,115810.0,115800.0,0.54097071]
[1758434521577,2.21308447,115810.0,115800.0,0.46353685]
[1758434522078,2.21308447,115810.0,115800.0,0.57199553]
[1758434522779,2.21308447,115810.0,115800.0,0.14664868]
[1758434522979,2.21308447,115810.0,115800.0,0.57199553]
[1758434523385,2.21308447,115810.0,115800.0,0.46353685]
[1758434523776,2.21308447,115810.0,115800.0,0.03819]
[1758434524081,2.21308447,115810.0,115800.0,0.46353685]
[1758434525376,2.21308447,115810.0,115800.0,0.54096716]
[1758434526882,0.93704392,115810.0,115800.0,0.54096716]
[1758434527083,2.22328447,115810.0,115800.0,0.07371621]
[1758434527376,2.23412447,115810.0,115800.0,1e-08]
[1758434527584,2.84492447,115810.0,115800.0,1e-08]
[1758434528182,2.86526104,115810.0,115800.0,1e-08]
[1758434528584,2.08506104,115810.0,115800.0,1e-08]
[1758434528882,2.86550104,115810.0,115800.0,1e-08]
[1758434529280,0.108246,115800.0,115790.0,0.03513]
[1758434529491,0.1220435,115790.0,115780.0,0.3609]
[1758434529684,2.17878405,115790.0,115780.0,0.02152]
[1758434529979,0.1221435,115790.0,115780.0,0.02152]
[1758434530179,1.39818405,115790.0,115780.0,0.02152]
[1758434530379,2.17878405,115790.0,115780.0,0.44686685]
[1758434531481,2.17978405,115790.0,115780.0,0.45886685]
[1758434532474,0.9037435,115790.0,115780.0,0.45886685]
[1758434532678,2.17978405,115790.0,115780.0,0.45886685]
[1758434538689,1.7544372,115790.0,115780.0,0.45886685]
[1758434538987,2.17978405,115790.0,115780.0,0.45886685]
[1758434539187,2.17978405,115790.0,115780.0,0.53621965]
[1758434539379,2.17978405,115790.0,115780.0,0.45886685]
[1758434539989,1.39918405,115790.0,115780.0,0.45886685]
[1758434540189,2.17966405,115790.0,115780.0,0.45886685]
[1758434540788,2.17966405,115790.0,115780.0,0.53621965]
[1758434540989,2.17966405,115790.0,115780.0,0.45886685]
[1758434541789,1.39918405,115790.0,115780.0,0.45886685]
[1758434542088,2.17962405,115790.0,115780.0,0.45886685]
[1758434542290,2.17962405,115790.0,115780.0,0.53621965]
[1758434544584,1.7542772,115790.0,115780.0,0.53621965]
[1758434544992,1.7542772,115790.0,115780.0,0.1108728]
[1758434545394,1.7542772,115790.0,115780.0,0.14197868]
[1758434546394,1.7542772,115790.0,115780.0,0.03352]
[1758434548397,1.7542772,115790.0,115780.0,0.45886685]
[1758434549397,1.7541572,115790.0,115780.0,0.45886685]
[1758434552596,2.17950405,115790.0,115780.0,0.45886685]
[1758434553398,2.17950405,115790.0,115780.0,0.03352]
[1758434553600,2.17950405,115790.0,115780.0,0.45886685]
[1758434556401,2.17950405,115790.0,115780.0,0.53623067]
[1758434556799,1.7541572,115790.0,115780.0,0.53623067]
[1758434558297,1.7541572,115790.0,115780.0,0.45886685]
[1758434558803,2.17950405,115790.0,115780.0,0.5363516]
[1758434559503,2.17950405,115790.0,115780.0,0.45886685]
[1758434561200,2.17950405,115790.0,115780.0,0.56732553]
[1758434563204,2.17950405,115790.0,115780.0,0.45886685]
[1758434569613,1.7541572,115790.0,115780.0,0.45886685]
[1758434570714,0.9034635,115790.0,115780.0,0.45886685]
[1758434570914,1.7541572,115790.0,115780.0,0.45886685]
[1758434571217,0.9738372,115790.0,115780.0,0.45886685]
[1758434571406,1.7537172,115790.0,115780.0,0.45886685]
[1758434571612,0.9738372,115790.0,115780.0,0.45886685]
[1758434571914,1.7537972,115790.0,115780.0,0.45886685]
[1758434572520,0.9738372,115790.0,115780.0,0.45886685]
[1758434572713,1.7537972,115790.0,115780.0,0.45886685]
[1758434573222,1.7537972,115790.0,115780.0,0.56732553]
[1758434576826,0.9031035,115790.0,115780.0,0.56732553]
[1758434577022,1.7538372,115790.0,115780.0,0.56732553]
[1758434577224,1.7538372,115790.0,115780.0,0.58042553]
[1758434577625,1.7538372,115790.0,115780.0,0.47196685]
[1758434577827,0.69039798,115790.0,115780.0,0.33024724]
[1758434578029,1.47039798,115790.0,115780.0,0.33024724]
[1758434578829,1.47039798,115790.0,115780.0,0.97467448]
[1758434578830,1.18681074,115790.0,115780.0,0.97467448]
[1758434579528,0.9031835,115790.0,115780.0,0.97467448]
[1758434579729,1.18681074,115790.0,115780.0,0.97467448]
[1758434580121,0.40677074,115790.0,115780.0,1.08313316]
[1758434580328,1.18677074,115790.0,115780.0,1.08313316]
[1758434581329,1.18677074,115790.0,115780.0,0.97467448]
[1758434582328,0.9031435,115790.0,115780.0,0.97467448]
[1758434582629,0.9031435,115790.0,115780.0,0.51587868]
[1758434582830,1.18677074,115790.0,115780.0,1.08313316]
[1758434583332,1.18677074,115790.0,115780.0,0.97467448]
[1758434583932,0.40677074,115790.0,115780.0,0.97467448]
[1758434584134,1.18673074,115790.0,115780.0,1.08313316]
[1758434585036,0.1231435,115790.0,115780.0,1.08313316]
[1758434585334,1.18741074,115790.0,115780.0,1.08313316]
[1758434595038,1.18717074,115790.0,115780.0,0.51587868]
[1758434595343,1.18717074,115790.0,115780.0,1.08313316]
[1758434600356,0.40677074,115790.0,115780.0,1.08313316]
[1758434600646,1.18709074,115790.0,115780.0,1.08313316]
[1758434601037,0.40677074,115790.0,115780.0,1.08313316]
[1758434601237,1.18709074,115790.0,115780.0,1.08313316]
[1758434602245,1.18705074,115790.0,115780.0,1.08313316]
[1758434606941,0.40677074,115790.0,115780.0,1.08313316]
[1758434607444,1.18697074,115790.0,115780.0,1.08313316]
[1758434611148,1.18697074,115790.0,115780.0,0.97467448]
[1758434611452,1.18697074,115790.0,115780.0,0.61387448]
[1758434611645,1.18697074,115790.0,115780.0,0.97467448]
[1758434613451,1.18697074,115790.0,115780.0,1.08320389]
[1758434615949,1.18697074,115790.0,115780.0,0.51594941]
[1758434616150,1.18697074,115790.0,115780.0,1.08320389]
[1758434623359,1.18697074,115790.0,115780.0,0.97467448]
[1758434626563,1.18697074,115790.0,115780.0,0.40742]
[1758434626762,1.18697074,115790.0,115780.0,0.97467448]
[1758434628161,1.18697074,115790.0,115780.0,1.08320698]
[1758434630559,1.47059798,115790.0,115780.0,1.08320698]
[1758434632464,1.18697074,115790.0,115780.0,1.08320698]
[1758434633958,1.47059798,115790.0,115780.0,0.79957974]
[1758434635063,1.47059798,115790.0,115780.0,0.43877974]
[1758434637767,1.7542527,115790.0,115780.0,0.5806071]
[1758434642269,2.1797073,115790.0,115780.0,0.1420525]
[1758434642562,2.1797073,115790.0,115780.0,0.5675071]
[1758434642764,2.7905073,115790.0,115780.0,0.0775186]
[1758434642964,1.5141435,115790.0,115780.0,1e-07]
[1758434643164,2.7905073,115790.0,115780.0,1e-07]
[1758434643570,0.1198727,115780.0,115770.0,0.0001]
[1758434643770,0.1195702,115770.0,115760.0,0.9178771]
[1758434643968,2.175894,115770.0,115760.0,0.9177771]
[1758434644158,2.175894,115770.0,115760.0,0.5569771]
[1758434644358,1.7504394,115770.0,115760.0,0.5569771]
[1758434644568,2.175894,115770.0,115760.0,0.5569771]
[1758434645470,2.175894,115770.0,115760.0,0.5619771]
[1758434646071,2.176894,115770.0,115760.0,0.5739771]
[1758434646266,2.176894,115770.0,115760.0,0.4654446]
[1758434646577,1.7514394,115770.0,115760.0,0.4654446]
[1758434646966,1.82192297,115770.0,115760.0,0.4654446]
[1758434647873,2.24737757,115770.0,115760.0,0.4654446]
[1758434648772,2.24737757,115770.0,115760.0,0.03999]
[1758434648983,2.24737757,115770.0,115760.0,0.4424546]
[1758434649480,2.24737757,115770.0,115760.0,0.4647046]
[1758434650781,1.04196297,115770.0,115760.0,0.4647046]
[1758434650988,1.82208297,115770.0,115760.0,0.4647046]
[1758434651881,1.82208297,115770.0,115760.0,0.54209132]
[1758434653077,1.82208297,115770.0,115760.0,0.11663672]
[1758434653378,1.82208297,115770.0,115760.0,0.54209132]
[1758434654282,1.82208297,115770.0,115760.0,0.4647046]
[1758434654482,1.82208297,115770.0,115760.0,0.54209132]
[1758434655086,1.04196297,115770.0,115760.0,0.54209132]
[1758434655283,0.96021377,115770.0,115760.0,0.9037892]
[1758434655582,1.38566837,115770.0,115760.0,0.98117592]
[1758434657688,0.60566837,115770.0,115760.0,0.98117592]
[1758434657986,1.38562837,115770.0,115760.0,1.40663052]
[1758434658386,0.96017377,115770.0,115760.0,1.40663052]
[1758434658584,0.60566837,115770.0,115760.0,1.40663052]
[1758434658887,1.38558837,115770.0,115760.0,1.40663052]
[1758434663487,1.38558837,115770.0,115760.0,1.3292438]
[1758434666289,0.60566837,115770.0,115760.0,1.3292438]
[1758434666483,1.38558837,115770.0,115760.0,1.3292438]
[1758434669391,1.38558837,115770.0,115760.0,1.4377763]
[1758434680703,0.18021377,115770.0,115760.0,1.7985763]
[1758434681009,1.38558837,115770.0,115760.0,0.41368]
[1758434681303,1.38558837,115770.0,115760.0,1.6900438]
[1758434682306,0.96013377,115770.0,115760.0,1.6900438]
[1758434682504,1.38558837,115770.0,115760.0,1.6900438]
[1758434682708,1.38558837,115770.0,115760.0,1.79858438]
[1758434683597,0.60566837,115770.0,115760.0,1.79858438]
[1758434683795,1.38558837,115770.0,115760.0,1.79858438]
[1758434690710,0.96013377,115770.0,115760.0,1.79858438]
[1758434690910,1.38558837,115770.0,115760.0,1.79858438]
[1758434692108,1.38558837,115770.0,115760.0,1.6900438]
[1758434692412,1.38558837,115770.0,115760.0,1.79858438]
[1758434693717,1.38558837,115770.0,115760.0,1.6900438]
[1758434694012,1.38558837,115770.0,115760.0,1.79858438]
[1758434699816,1.38558837,115770.0,115760.0,1.08962828]
[1758434699817,1.24383762,115770.0,115760.0,1.08962828]
[1758434707019,1.24383762,115770.0,115760.0,1.37333213]
[1758434707724,0.46391762,115770.0,115760.0,1.37333213]
[1758434707914,1.24379762,115770.0,115760.0,1.37333213]
[1758434709925,1.24379762,115770.0,115760.0,1.08962828]
[1758434711024,0.46391762,115770.0,115760.0,1.08962828]
[1758434711525,1.24379762,115770.0,115760.0,1.08962828]
[1758434712024,1.24379762,115770.0,115760.0,1.37333213]
[1758434712226,0.46391762,115770.0,115760.0,1.37333213]
[1758434712526,1.24379762,115770.0,115760.0,1.37333213]
[1758434719026,0.96009377,115770.0,115760.0,1.37333213]
[1758434719224,0.18021377,115770.0,115760.0,2.15317213]
[1758434719430,0.15780377,115770.0,115760.0,2.48072657]
[1758434719633,0.0873202,115770.0,115760.0,2.29463155]
[1758434720324,0.0873202,115770.0,115760.0,2.40312073]
[1758434720527,0.0873202,115770.0,115760.0,2.48944843]
[1758434721031,0.001,115780.0,115770.0,0.03429]
[1758434721226,0.0873127,115780.0,115770.0,1.24620155]
[1758434722136,0.0863127,115780.0,115770.0,1.24620155]
[1758434722327,0.0873127,115780.0,115770.0,1.25620155]
[1758434723035,0.0873127,115780.0,115770.0,1.25920155]
[1758434729136,0.0873127,115780.0,115770.0,1.36746673]
[1758434730538,0.0873127,115780.0,115770.0,2.14722673]
[1758434730739,0.0873127,115780.0,115770.0,1.36746673]
[1758434730928,0.0873127,115780.0,115770.0,2.14722673]
[1758434731538,0.0873127,115780.0,115770.0,1.36746673]
[1758434731739,0.0873127,115780.0,115770.0,2.14722673]
[1758434732238,0.0873127,115780.0,115770.0,2.14718673]
[1758434732942,0.0873127,115780.0,115770.0,1.36746673]
[1758434733344,0.0873127,115780.0,115770.0,2.14718673]
[1758434736243,0.0873127,115780.0,115770.0,1.36746673]
[1758434736539,0.0873127,115780.0,115770.0,2.14718673]
[1758434740437,0.0873127,115780.0,115770.0,2.03892155]
[1758434743248,0.0873127,115780.0,115770.0,2.14721524]
[1758434746252,0.0873127,115780.0,115770.0,1.36749524]
[1758434746452,0.0873127,115780.0,115770.0,2.03888155]
[1758434752958,0.0873127,115780.0,115770.0,2.39968155]
[1758434753560,0.0873127,115780.0,115770.0,2.55507335]
[1758434756861,0.0873127,115780.0,115770.0,2.39968155]
[1758434757360,0.0873127,115780.0,115770.0,1.67808155]
[1758434757564,0.0873127,115780.0,115770.0,2.39968155]
[1758434760657,0.0873127,115780.0,115770.0,2.50821199]
[1758434761459,0.0873127,115780.0,115770.0,2.39968155]
[1758434761864,0.0873127,115780.0,115770.0,2.82468399]
[1758434765966,0.0873127,115780.0,115770.0,2.10308399]
[1758434766167,0.0873127,115780.0,115770.0,2.82468399]
[1758434770573,0.0873127,115780.0,115770.0,2.98007579]
[1758434773873,0.0873127,115780.0,115770.0,2.82468399]
[1758434774975,0.0873127,115780.0,115770.0,2.10308399]
[1758434775166,0.0873127,115780.0,115770.0,2.82468399]
[1758434775974,0.0873127,115780.0,115770.0,2.10308399]
[1758434776274,0.0873127,115780.0,115770.0,2.98007579]